[Event "Late-Titled-Tuesday-Blitz-January-23-2024"]
[Site "Chess.com"]
[Date "2024.01.23"]
[Round "4"]
[White "Hirna2005"]
[Black "CaspiIsrael"]
[Result "0-1"]
[WhiteElo "2289"]
[BlackElo "2672"]
[TimeControl "180+1"]
[EndTime "14:35:06 PST"]
[Termination "CaspiIsrael won by resignation"]

1. e4 {[%clk 0:03:00.9]} 1... d5 {[%clk 0:02:58.3]} 2. exd5 {[%clk 0:03:00.6]}
2... Qxd5 {[%clk 0:02:59.2]} 3. Nf3 {[%clk 0:03:00.4]} 3... Bg4 {[%clk
0:02:58.6]} 4. Be2 {[%clk 0:03:00]} 4... Nc6 {[%clk 0:02:58.7]} 5. Nc3 {[%clk
0:02:59.6]} 5... Qd7 {[%clk 0:02:55.4]} 6. h3 {[%clk 0:02:57.9]} 6... Bxf3
{[%clk 0:02:55.3]} 7. Bxf3 {[%clk 0:02:57.7]} 7... O-O-O {[%clk 0:02:55.6]} 8.
O-O {[%clk 0:02:55.1]} 8... e5 {[%clk 0:02:55.5]} 9. d3 {[%clk 0:02:53.2]} 9...
Nd4 {[%clk 0:02:55.1]} 10. Bd5 {[%clk 0:02:42.5]} 10... Bc5 {[%clk 0:02:38.3]}
11. Be3 {[%clk 0:02:39.9]} 11... Ne7 {[%clk 0:02:37.8]} 12. Bc4 {[%clk
0:02:35.5]} 12... Nef5 {[%clk 0:02:37.6]} 13. Kh1 {[%clk 0:01:59.3]} 13... Kb8
{[%clk 0:02:36.6]} 14. Ne2 {[%clk 0:01:49.3]} 14... Nxe3 {[%clk 0:02:30]} 15.
fxe3 {[%clk 0:01:48.9]} 15... Nf5 {[%clk 0:02:30.2]} 16. Qe1 {[%clk 0:01:33.4]}
16... f6 {[%clk 0:02:26.9]} 17. d4 {[%clk 0:01:20.6]} 17... Nxe3 {[%clk
0:02:23.9]} 18. dxc5 {[%clk 0:01:10.7]} 18... Nxc4 {[%clk 0:02:24]} 19. Qb4
{[%clk 0:01:10.1]} 19... Ne3 {[%clk 0:02:24]} 20. Rf3 {[%clk 0:01:08.2]} 20...
Nxc2 {[%clk 0:02:23.6]} 21. Qa5 {[%clk 0:01:03.9]} 21... Nxa1 {[%clk 0:02:20.8]}
22. Ra3 {[%clk 0:01:03.6]} 22... a6 {[%clk 0:02:20.9]} 23. Nc3 {[%clk
0:01:02.8]} 23... Nc2 {[%clk 0:02:15.5]} 24. Rb3 {[%clk 0:01:02.6]} 24... Nd4
{[%clk 0:02:12.4]} 0-1

[Event "Late-Titled-Tuesday-Blitz-January-23-2024"]
[Site "Chess.com"]
[Date "2024.01.23"]
[Round "4"]
[White "RantomOpening"]
[Black "Piotrek1979"]
[Result "1-0"]
[WhiteElo "2542"]
[BlackElo "2390"]
[TimeControl "180+1"]
[EndTime "14:35:12 PST"]
[Termination "RantomOpening won by resignation"]

1. e4 {[%clk 0:02:59.2]} 1... c5 {[%clk 0:03:00.6]} 2. c3 {[%clk 0:02:59.1]}
2... Nf6 {[%clk 0:02:59.7]} 3. e5 {[%clk 0:02:59.4]} 3... Nd5 {[%clk 0:03:00.4]}
4. Nf3 {[%clk 0:02:59]} 4... e6 {[%clk 0:02:59.9]} 5. d4 {[%clk 0:02:58.8]} 5...
cxd4 {[%clk 0:03:00.2]} 6. cxd4 {[%clk 0:02:59.7]} 6... b6 {[%clk 0:03:00.4]} 7.
Bc4 {[%clk 0:02:59.7]} 7... Ba6 {[%clk 0:02:56.9]} 8. Bxa6 {[%clk 0:02:58.7]}
8... Nxa6 {[%clk 0:02:56.2]} 9. O-O {[%clk 0:02:59.2]} 9... Be7 {[%clk
0:02:54.8]} 10. Nbd2 {[%clk 0:02:56.5]} 10... Nab4 {[%clk 0:02:45.1]} 11. a3
{[%clk 0:02:50.1]} 11... Nc6 {[%clk 0:02:45.3]} 12. Nc4 {[%clk 0:02:48.6]} 12...
b5 {[%clk 0:02:40.7]} 13. Ne3 {[%clk 0:02:48.4]} 13... Nxe3 {[%clk 0:02:29.5]}
14. Bxe3 {[%clk 0:02:49.3]} 14... d5 {[%clk 0:02:27.7]} 15. Rc1 {[%clk
0:02:44.6]} 15... Qd7 {[%clk 0:02:27.1]} 16. b4 {[%clk 0:02:38.3]} 16... O-O
{[%clk 0:02:25.5]} 17. Nd2 {[%clk 0:02:37.5]} 17... a5 {[%clk 0:02:21.5]} 18. a4
{[%clk 0:02:31.1]} 18... Nxb4 {[%clk 0:02:20]} 19. axb5 {[%clk 0:02:27.7]} 19...
Qxb5 {[%clk 0:02:19.5]} 20. Nb3 {[%clk 0:02:26.8]} 20... Rfc8 {[%clk 0:02:17.4]}
21. Qd2 {[%clk 0:02:22.6]} 21... Qd3 {[%clk 0:02:10.1]} 22. Qxd3 {[%clk
0:02:20.7]} 22... Nxd3 {[%clk 0:02:09.5]} 23. Rxc8+ {[%clk 0:02:21.6]} 23...
Rxc8 {[%clk 0:02:08.6]} 24. Nxa5 {[%clk 0:02:22.1]} 24... h5 {[%clk 0:01:57]}
25. Rd1 {[%clk 0:02:18.5]} 25... Kh7 {[%clk 0:01:52.3]} 26. Rxd3 {[%clk
0:02:17.2]} 26... Ra8 {[%clk 0:01:49.5]} 27. Nb3 {[%clk 0:02:17.1]} 27... Ra2
{[%clk 0:01:46.7]} 28. g3 {[%clk 0:02:16]} 28... g5 {[%clk 0:01:43.5]} 29. Nc5
{[%clk 0:02:14.2]} 29... g4 {[%clk 0:01:40.2]} 30. Kg2 {[%clk 0:02:13.7]} 30...
Kg6 {[%clk 0:01:39.8]} 31. h3 {[%clk 0:02:12.1]} 31... Kf5 {[%clk 0:01:39.5]}
32. hxg4+ {[%clk 0:02:11.8]} 32... hxg4 {[%clk 0:01:40.4]} 33. Rb3 {[%clk
0:02:11.1]} 33... Rc2 {[%clk 0:01:30.6]} 34. Rb7 {[%clk 0:02:04.1]} 34... Bxc5
{[%clk 0:01:30.3]} 35. Rxf7+ {[%clk 0:02:03.6]} 35... Ke4 {[%clk 0:01:30.4]} 36.
dxc5 {[%clk 0:02:03.1]} 36... Kxe5 {[%clk 0:01:25.4]} 37. Rf4 {[%clk 0:02:03.6]}
1-0

[Event "Late-Titled-Tuesday-Blitz-January-23-2024"]
[Site "Chess.com"]
[Date "2024.01.23"]
[Round "4"]
[White "GrotBchess"]
[Black "OneTrickPony_82"]
[Result "0-1"]
[WhiteElo "2302"]
[BlackElo "2492"]
[TimeControl "180+1"]
[EndTime "14:35:23 PST"]
[Termination "OneTrickPony_82 won by resignation"]

1. e4 {[%clk 0:02:57.5]} 1... e5 {[%clk 0:03:00]} 2. Nf3 {[%clk 0:02:53.8]} 2...
Nc6 {[%clk 0:03:00.4]} 3. Bb5 {[%clk 0:02:50]} 3... a6 {[%clk 0:03:00.5]} 4. Ba4
{[%clk 0:02:49.8]} 4... Nf6 {[%clk 0:03:00.8]} 5. O-O {[%clk 0:02:49.5]} 5...
Be7 {[%clk 0:03:01.4]} 6. Re1 {[%clk 0:02:49]} 6... b5 {[%clk 0:03:01.7]} 7. Bb3
{[%clk 0:02:49.3]} 7... O-O {[%clk 0:03:02.4]} 8. h3 {[%clk 0:02:48.2]} 8... Na5
{[%clk 0:02:58.5]} 9. Nxe5 {[%clk 0:02:47.3]} 9... Nxb3 {[%clk 0:02:58.2]} 10.
axb3 {[%clk 0:02:47.8]} 10... Bb7 {[%clk 0:02:58.3]} 11. d3 {[%clk 0:02:47.4]}
11... d5 {[%clk 0:02:58.2]} 12. exd5 {[%clk 0:02:44.2]} 12... Qxd5 {[%clk
0:02:58]} 13. Qf3 {[%clk 0:02:38.2]} 13... Bd6 {[%clk 0:02:58]} 14. Qxd5 {[%clk
0:02:37]} 14... Nxd5 {[%clk 0:02:52.4]} 15. Nc3 {[%clk 0:02:35.7]} 15... Nb4
{[%clk 0:02:51.7]} 16. Re2 {[%clk 0:02:26]} 16... Nxc2 {[%clk 0:02:44]} 17. Rxc2
{[%clk 0:02:24.8]} 17... Bxe5 {[%clk 0:02:44]} 18. Be3 {[%clk 0:02:23.6]} 18...
Rfd8 {[%clk 0:02:37.7]} 19. Rd1 {[%clk 0:02:14.7]} 19... h6 {[%clk 0:02:29.5]}
20. d4 {[%clk 0:02:13.3]} 20... Bf6 {[%clk 0:02:26.1]} 21. Ne2 {[%clk 0:01:58]}
21... Rac8 {[%clk 0:02:17.3]} 22. Rdc1 {[%clk 0:01:54.8]} 22... Bd5 {[%clk
0:02:10.7]} 23. Rxc7 {[%clk 0:01:47.6]} 23... Rxc7 {[%clk 0:02:10.7]} 24. Rxc7
{[%clk 0:01:48.1]} 24... Bxb3 {[%clk 0:02:11.3]} 25. Ra7 {[%clk 0:01:44]} 25...
Bc4 {[%clk 0:02:09.6]} 26. Kf1 {[%clk 0:01:23.9]} 26... Bxd4 {[%clk 0:02:04.2]}
27. Bxd4 {[%clk 0:01:07.2]} 27... Rxd4 {[%clk 0:02:02.6]} 28. Ke1 {[%clk
0:01:05.6]} 28... Re4 {[%clk 0:02:01.8]} 29. Rxa6 {[%clk 0:00:56.9]} 29... Rxe2+
{[%clk 0:01:59.8]} 30. Kd1 {[%clk 0:00:56.2]} 30... Rxb2 {[%clk 0:01:59.5]} 31.
g4 {[%clk 0:00:54.8]} 31... Rxf2 {[%clk 0:01:58.6]} 32. Ke1 {[%clk 0:00:54]}
32... Rh2 {[%clk 0:01:58]} 33. Kd1 {[%clk 0:00:54.9]} 33... b4 {[%clk
0:01:54.8]} 34. Kc1 {[%clk 0:00:55.8]} 34... Bxa6 {[%clk 0:01:54]} 35. Kb1
{[%clk 0:00:56.7]} 35... b3 {[%clk 0:01:53.8]} 36. Kc1 {[%clk 0:00:57.6]} 36...
b2+ {[%clk 0:01:53.2]} 37. Kb1 {[%clk 0:00:58.5]} 0-1

[Event "Late-Titled-Tuesday-Blitz-January-23-2024"]
[Site "Chess.com"]
[Date "2024.01.23"]
[Round "4"]
[White "ClayK1ng"]
[Black "AndreyNeves"]
[Result "1-0"]
[WhiteElo "2260"]
[BlackElo "2020"]
[TimeControl "180+1"]
[EndTime "14:35:24 PST"]
[Termination "ClayK1ng won by resignation"]

1. e4 {[%clk 0:03:00.9]} 1... c6 {[%clk 0:02:59.1]} 2. Nf3 {[%clk 0:02:58.3]}
2... d5 {[%clk 0:02:59.2]} 3. d3 {[%clk 0:02:59.2]} 3... dxe4 {[%clk 0:02:58.5]}
4. dxe4 {[%clk 0:03:00.1]} 4... Qxd1+ {[%clk 0:02:58.4]} 5. Kxd1 {[%clk
0:03:01]} 5... Bg4 {[%clk 0:02:58.5]} 6. Be2 {[%clk 0:03:00.8]} 6... Nd7 {[%clk
0:02:57.4]} 7. Ne1 {[%clk 0:03:00.9]} 7... Bxe2+ {[%clk 0:02:56.1]} 8. Kxe2
{[%clk 0:03:01.8]} 8... e5 {[%clk 0:02:56.5]} 9. Nd3 {[%clk 0:02:59.3]} 9...
Ngf6 {[%clk 0:02:53]} 10. f3 {[%clk 0:02:58.7]} 10... O-O-O {[%clk 0:02:48.7]}
11. a4 {[%clk 0:02:56.2]} 11... Kc7 {[%clk 0:02:40]} 12. a5 {[%clk 0:02:52]}
12... Bd6 {[%clk 0:02:32.8]} 13. Be3 {[%clk 0:02:45]} 13... Kb8 {[%clk
0:02:28.8]} 14. Nd2 {[%clk 0:02:41.2]} 14... Rhe8 {[%clk 0:02:28.6]} 15. Nc4
{[%clk 0:02:40.6]} 15... Bc7 {[%clk 0:02:29.3]} 16. b4 {[%clk 0:02:35.3]} 16...
a6 {[%clk 0:02:26.1]} 17. Nb6 {[%clk 0:02:25.9]} 17... Nxb6 {[%clk 0:02:22.5]}
18. axb6 {[%clk 0:02:26.8]} 18... Bd6 {[%clk 0:02:21]} 19. c4 {[%clk 0:02:25.9]}
19... Nh5 {[%clk 0:02:19.4]} 20. g3 {[%clk 0:02:23.2]} 20... f5 {[%clk
0:02:14.1]} 21. c5 {[%clk 0:01:47.9]} 21... Bf8 {[%clk 0:02:12.4]} 22. exf5
{[%clk 0:01:43.3]} 22... e4 {[%clk 0:02:11.6]} 23. Nf4 {[%clk 0:01:43.9]} 23...
Nxf4+ {[%clk 0:02:03.7]} 24. Bxf4+ {[%clk 0:01:43.4]} 24... Kc8 {[%clk
0:01:57.7]} 25. Rad1 {[%clk 0:01:42.7]} 25... Rd5 {[%clk 0:01:46.1]} 26. Rxd5
{[%clk 0:01:27.7]} 26... cxd5 {[%clk 0:01:47]} 27. Rd1 {[%clk 0:01:27.9]} 27...
exf3+ {[%clk 0:01:39.3]} 28. Kxf3 {[%clk 0:01:28.8]} 28... Re4 {[%clk
0:01:39.2]} 29. Rxd5 {[%clk 0:01:23.7]} 29... Rxb4 {[%clk 0:01:39]} 30. Bg5
{[%clk 0:01:24.1]} 30... Rb3+ {[%clk 0:01:34.8]} 31. Kg4 {[%clk 0:01:21]} 31...
Rb4+ {[%clk 0:01:32.3]} 32. Kh3 {[%clk 0:01:20.3]} 1-0

[Event "Late-Titled-Tuesday-Blitz-January-23-2024"]
[Site "Chess.com"]
[Date "2024.01.23"]
[Round "4"]
[White "rionelG"]
[Black "AungTZ"]
[Result "1-0"]
[WhiteElo "2270"]
[BlackElo "2094"]
[TimeControl "180+1"]
[EndTime "14:35:35 PST"]
[Termination "rionelG won by resignation"]

1. e4 {[%clk 0:02:41.1]} 1... c5 {[%clk 0:02:58.2]} 2. Nf3 {[%clk 0:02:40.1]}
2... Nc6 {[%clk 0:02:58.7]} 3. d4 {[%clk 0:02:39.9]} 3... cxd4 {[%clk
0:02:59.2]} 4. Nxd4 {[%clk 0:02:40.8]} 4... Nf6 {[%clk 0:02:59.2]} 5. Nc3 {[%clk
0:02:41.2]} 5... d6 {[%clk 0:02:59.7]} 6. Nd5 {[%clk 0:02:40.9]} 6... e6 {[%clk
0:02:51.7]} 7. Nxf6+ {[%clk 0:02:39.4]} 7... Qxf6 {[%clk 0:02:51.6]} 8. Nb5
{[%clk 0:02:40.1]} 8... Qd8 {[%clk 0:02:45.8]} 9. Bf4 {[%clk 0:02:38]} 9... e5
{[%clk 0:02:33.9]} 10. Be3 {[%clk 0:02:37]} 10... Be6 {[%clk 0:02:32.1]} 11. Be2
{[%clk 0:02:32.3]} 11... Be7 {[%clk 0:02:31.1]} 12. O-O {[%clk 0:02:31.7]} 12...
O-O {[%clk 0:02:29.7]} 13. c4 {[%clk 0:02:31.7]} 13... Qd7 {[%clk 0:01:45.7]}
14. Rc1 {[%clk 0:02:24]} 14... Rfd8 {[%clk 0:01:39.3]} 15. Nc3 {[%clk
0:02:24.1]} 15... Rac8 {[%clk 0:01:33.8]} 16. b3 {[%clk 0:02:21.5]} 16... Qe8
{[%clk 0:01:23.6]} 17. Qd2 {[%clk 0:01:57.1]} 17... f5 {[%clk 0:01:12]} 18. exf5
{[%clk 0:01:54]} 18... Bxf5 {[%clk 0:01:12.9]} 19. Bf3 {[%clk 0:01:44.4]} 19...
a6 {[%clk 0:01:10.3]} 20. Nd5 {[%clk 0:01:41.8]} 20... Kh8 {[%clk 0:01:06.7]}
21. Nb6 {[%clk 0:01:40.7]} 21... Rb8 {[%clk 0:01:05.2]} 22. Bd5 {[%clk
0:01:33.3]} 22... Bf6 {[%clk 0:00:59.8]} 23. Rfe1 {[%clk 0:01:32.9]} 23... Nd4
{[%clk 0:00:52.5]} 24. Bxd4 {[%clk 0:01:31.9]} 24... exd4 {[%clk 0:00:53.4]} 25.
Rxe8+ {[%clk 0:01:31.6]} 25... Rxe8 {[%clk 0:00:53.2]} 1-0

[Event "Late-Titled-Tuesday-Blitz-January-23-2024"]
[Site "Chess.com"]
[Date "2024.01.23"]
[Round "4"]
[White "Hrant_ChessMood"]
[Black "crazy_but_lazy"]
[Result "1-0"]
[WhiteElo "2912"]
[BlackElo "2609"]
[TimeControl "180+1"]
[EndTime "14:35:44 PST"]
[Termination "Hrant_ChessMood won by resignation"]

1. c4 {[%clk 0:03:00.9]} 1... e5 {[%clk 0:02:52.9]} 2. g3 {[%clk 0:03:00.4]}
2... d5 {[%clk 0:02:51.3]} 3. cxd5 {[%clk 0:03:00.1]} 3... Qxd5 {[%clk
0:02:52.2]} 4. Nf3 {[%clk 0:03:00.4]} 4... Nc6 {[%clk 0:02:49.8]} 5. Nc3 {[%clk
0:03:00]} 5... Qd8 {[%clk 0:02:49.4]} 6. d3 {[%clk 0:03:00.5]} 6... h6 {[%clk
0:02:47.2]} 7. Bg2 {[%clk 0:03:00.6]} 7... Nf6 {[%clk 0:02:47.3]} 8. O-O {[%clk
0:03:00.9]} 8... Bd6 {[%clk 0:02:46.8]} 9. a3 {[%clk 0:03:01.1]} 9... O-O {[%clk
0:02:47]} 10. b4 {[%clk 0:02:59]} 10... Be6 {[%clk 0:02:24.5]} 11. Bb2 {[%clk
0:02:57.3]} 11... Qd7 {[%clk 0:02:23.4]} 12. Rc1 {[%clk 0:02:50.5]} 12... Bh3
{[%clk 0:02:22.7]} 13. Ne4 {[%clk 0:02:43]} 13... Nxe4 {[%clk 0:02:13.3]} 14.
dxe4 {[%clk 0:02:32.2]} 14... Bxg2 {[%clk 0:02:06.4]} 15. Kxg2 {[%clk 0:02:32]}
15... Qe7 {[%clk 0:02:04.2]} 16. Qb3 {[%clk 0:02:28.4]} 16... a5 {[%clk
0:01:38.5]} 17. b5 {[%clk 0:02:26.7]} 17... Nd8 {[%clk 0:01:38.4]} 18. a4 {[%clk
0:02:22]} 18... b6 {[%clk 0:01:18.1]} 19. Rfd1 {[%clk 0:02:21.7]} 19... Nb7
{[%clk 0:01:16.4]} 20. Rc4 {[%clk 0:02:19.4]} 20... Nc5 {[%clk 0:01:14.8]} 21.
Qc2 {[%clk 0:02:19.2]} 21... Rad8 {[%clk 0:01:14.9]} 22. Rd5 {[%clk 0:02:05.7]}
22... Qe6 {[%clk 0:01:08.9]} 23. Bxe5 {[%clk 0:01:56.6]} 23... Bxe5 {[%clk
0:00:58.9]} 24. Rxe5 {[%clk 0:01:56.3]} 24... Qg6 {[%clk 0:00:59.3]} 25. Rexc5
{[%clk 0:01:51.9]} 25... bxc5 {[%clk 0:00:59.3]} 26. Rxc5 {[%clk 0:01:52.8]}
26... Rd7 {[%clk 0:00:54.4]} 27. Ne5 {[%clk 0:01:50.2]} 27... Qe6 {[%clk
0:00:44]} 28. Nxd7 {[%clk 0:01:49.7]} 28... Qxd7 {[%clk 0:00:44.9]} 29. Rxc7
{[%clk 0:01:50.6]} 29... Qd4 {[%clk 0:00:44.7]} 30. e3 {[%clk 0:01:50.3]} 30...
Qb4 {[%clk 0:00:44.3]} 31. Qc4 {[%clk 0:01:48.6]} 31... Qb1 {[%clk 0:00:44]} 32.
e5 {[%clk 0:01:47.2]} 1-0

[Event "Late-Titled-Tuesday-Blitz-January-23-2024"]
[Site "Chess.com"]
[Date "2024.01.23"]
[Round "4"]
[White "rynos0411"]
[Black "Roedor"]
[Result "0-1"]
[WhiteElo "2488"]
[BlackElo "2336"]
[TimeControl "180+1"]
[EndTime "14:35:45 PST"]
[Termination "Roedor won by resignation"]

1. e4 {[%clk 0:03:00.9]} 1... e5 {[%clk 0:02:51.1]} 2. Bc4 {[%clk 0:02:59.2]}
2... Nc6 {[%clk 0:02:49.1]} 3. d3 {[%clk 0:02:58.8]} 3... Nf6 {[%clk 0:02:48.9]}
4. Nf3 {[%clk 0:02:57.3]} 4... Bc5 {[%clk 0:02:48.4]} 5. c3 {[%clk 0:02:55.2]}
5... d6 {[%clk 0:02:48.5]} 6. O-O {[%clk 0:02:55.3]} 6... O-O {[%clk 0:02:48.6]}
7. a4 {[%clk 0:02:55.2]} 7... a5 {[%clk 0:02:49]} 8. Nbd2 {[%clk 0:02:54.4]}
8... Ba7 {[%clk 0:02:49.1]} 9. Re1 {[%clk 0:02:54.3]} 9... Ng4 {[%clk
0:02:48.8]} 10. Re2 {[%clk 0:02:48.4]} 10... Kh8 {[%clk 0:02:47.9]} 11. Nf1
{[%clk 0:02:48.1]} 11... f5 {[%clk 0:02:46.6]} 12. exf5 {[%clk 0:02:48.1]} 12...
Bxf5 {[%clk 0:02:47.4]} 13. Ng3 {[%clk 0:02:48.6]} 13... Bd7 {[%clk 0:02:35.5]}
14. h3 {[%clk 0:02:48]} 14... Nh6 {[%clk 0:02:35.3]} 15. Bxh6 {[%clk 0:02:42.6]}
15... gxh6 {[%clk 0:02:36.2]} 16. Qd2 {[%clk 0:02:42.9]} 16... Qf6 {[%clk
0:02:34.1]} 17. Nh2 {[%clk 0:02:33.5]} 17... Qg7 {[%clk 0:02:29.8]} 18. Nhf1
{[%clk 0:02:07.9]} 18... Ne7 {[%clk 0:02:20.3]} 19. d4 {[%clk 0:01:59.5]} 19...
Nf5 {[%clk 0:02:17.4]} 20. Nxf5 {[%clk 0:01:55.7]} 20... Rxf5 {[%clk 0:02:17.8]}
21. dxe5 {[%clk 0:01:52.6]} 21... Rg5 {[%clk 0:02:09.5]} 22. Ne3 {[%clk
0:00:59.3]} 22... Bxh3 {[%clk 0:02:07.3]} 23. Bd5 {[%clk 0:00:56.1]} 23... Rg8
{[%clk 0:02:04.4]} 24. Kf1 {[%clk 0:00:37.4]} 24... Bxg2+ {[%clk 0:01:59]} 25.
Ke1 {[%clk 0:00:20.1]} 25... Bxd5 {[%clk 0:01:57.5]} 26. Qxd5 {[%clk 0:00:20.1]}
26... Rg1+ {[%clk 0:01:50.5]} 27. Nf1 {[%clk 0:00:19.6]} 27... Rxf1+ {[%clk
0:01:50.4]} 0-1

[Event "Late-Titled-Tuesday-Blitz-January-23-2024"]
[Site "Chess.com"]
[Date "2024.01.23"]
[Round "4"]
[White "IsaqueGoncalvesSanto"]
[Black "IndianSchoolOfSuffering"]
[Result "0-1"]
[WhiteElo "1792"]
[BlackElo "2438"]
[TimeControl "180+1"]
[EndTime "14:35:48 PST"]
[Termination "IndianSchoolOfSuffering won by resignation"]

1. d4 {[%clk 0:02:55.3]} 1... Nf6 {[%clk 0:02:59.3]} 2. c4 {[%clk 0:02:55.1]}
2... g6 {[%clk 0:02:58.7]} 3. Nc3 {[%clk 0:02:54.5]} 3... d5 {[%clk 0:02:57.8]}
4. cxd5 {[%clk 0:02:54.1]} 4... Nxd5 {[%clk 0:02:58.7]} 5. e4 {[%clk 0:02:54.5]}
5... Nxc3 {[%clk 0:02:58.2]} 6. bxc3 {[%clk 0:02:55]} 6... Bg7 {[%clk
0:02:57.8]} 7. Bc4 {[%clk 0:02:55.5]} 7... c5 {[%clk 0:02:57.7]} 8. Ne2 {[%clk
0:02:55.6]} 8... O-O {[%clk 0:02:57.2]} 9. O-O {[%clk 0:02:53]} 9... Nc6 {[%clk
0:02:56.9]} 10. Be3 {[%clk 0:02:52.7]} 10... Bg4 {[%clk 0:02:53.2]} 11. f3
{[%clk 0:02:52.4]} 11... Bd7 {[%clk 0:02:53.6]} 12. dxc5 {[%clk 0:02:48.7]}
12... Qc7 {[%clk 0:02:51.9]} 13. Rb1 {[%clk 0:02:46.9]} 13... Rfd8 {[%clk
0:02:49.6]} 14. Qc1 {[%clk 0:02:40.9]} 14... Ne5 {[%clk 0:02:47.2]} 15. Bb3
{[%clk 0:02:28.6]} 15... Bb5 {[%clk 0:02:45.8]} 16. c4 {[%clk 0:02:26.6]} 16...
Ba6 {[%clk 0:02:24]} 17. Rd1 {[%clk 0:01:49.5]} 17... Nd3 {[%clk 0:02:22.1]} 18.
Qa3 {[%clk 0:01:41.2]} 18... Rac8 {[%clk 0:02:11.4]} 19. Rd2 {[%clk 0:01:04.7]}
19... Ne5 {[%clk 0:02:10.5]} 20. Rxd8+ {[%clk 0:00:54.9]} 20... Rxd8 {[%clk
0:02:10.1]} 21. Bd4 {[%clk 0:00:49.8]} 21... Nxf3+ {[%clk 0:01:49.4]} 22. gxf3
{[%clk 0:00:43.3]} 22... Bxd4+ {[%clk 0:01:50.3]} 23. Nxd4 {[%clk 0:00:43]}
23... Rxd4 {[%clk 0:01:50.3]} 24. Qb4 {[%clk 0:00:37.7]} 24... Qf4 {[%clk
0:01:41.2]} 25. Kg2 {[%clk 0:00:30.1]} 25... Rd2+ {[%clk 0:01:39.5]} 0-1

[Event "Late-Titled-Tuesday-Blitz-January-23-2024"]
[Site "Chess.com"]
[Date "2024.01.23"]
[Round "4"]
[White "MokshanovAlexey"]
[Black "Angry_Twin"]
[Result "0-1"]
[WhiteElo "2638"]
[BlackElo "2991"]
[TimeControl "180+1"]
[EndTime "14:35:56 PST"]
[Termination "Angry_Twin won by checkmate"]

1. e4 {[%clk 0:03:00.9]} 1... c5 {[%clk 0:03:00.4]} 2. Nf3 {[%clk 0:03:00.3]}
2... d6 {[%clk 0:03:01.1]} 3. Bb5+ {[%clk 0:03:00.4]} 3... Nd7 {[%clk
0:03:00.1]} 4. c4 {[%clk 0:03:00.4]} 4... g6 {[%clk 0:02:58.4]} 5. O-O {[%clk
0:03:00]} 5... Bg7 {[%clk 0:02:58.8]} 6. Nc3 {[%clk 0:03:00.6]} 6... a6 {[%clk
0:02:58.6]} 7. Bxd7+ {[%clk 0:02:55.1]} 7... Bxd7 {[%clk 0:02:59.5]} 8. d3
{[%clk 0:02:55.6]} 8... Nf6 {[%clk 0:02:59.6]} 9. h3 {[%clk 0:02:51.3]} 9... O-O
{[%clk 0:02:59.7]} 10. Be3 {[%clk 0:02:50.8]} 10... b5 {[%clk 0:02:59.7]} 11.
Qd2 {[%clk 0:02:50.6]} 11... b4 {[%clk 0:02:57.3]} 12. Nd5 {[%clk 0:02:46.6]}
12... Nxd5 {[%clk 0:02:57.3]} 13. exd5 {[%clk 0:02:47.2]} 13... e6 {[%clk
0:02:54.7]} 14. dxe6 {[%clk 0:02:46.9]} 14... Bxe6 {[%clk 0:02:54.1]} 15. Bh6
{[%clk 0:02:46.4]} 15... Qf6 {[%clk 0:02:50.3]} 16. Bxg7 {[%clk 0:02:45.7]}
16... Kxg7 {[%clk 0:02:51.2]} 17. Ng5 {[%clk 0:02:39.8]} 17... Bf5 {[%clk
0:02:47.9]} 18. a3 {[%clk 0:02:33.6]} 18... a5 {[%clk 0:02:45.1]} 19. g4 {[%clk
0:01:50.4]} 19... Bxd3 {[%clk 0:02:37.2]} 20. Qxd3 {[%clk 0:01:48.8]} 20... Qxg5
{[%clk 0:02:37.4]} 21. Qxd6 {[%clk 0:01:49]} 21... Rad8 {[%clk 0:02:32.2]} 22.
Qc7 {[%clk 0:01:36.7]} 22... Rd4 {[%clk 0:02:28.5]} 23. axb4 {[%clk 0:01:36.2]}
23... axb4 {[%clk 0:02:28.1]} 24. Rac1 {[%clk 0:00:44.8]} 24... h5 {[%clk
0:02:27.2]} 25. f4 {[%clk 0:00:35.6]} 25... Qh4 {[%clk 0:02:26.6]} 26. Rf3
{[%clk 0:00:27.2]} 26... hxg4 {[%clk 0:02:24.6]} 27. Qxc5 {[%clk 0:00:27.5]}
27... Rfd8 {[%clk 0:02:11.5]} 28. Re3 {[%clk 0:00:14.6]} 28... Rd1+ {[%clk
0:01:59.1]} 29. Rxd1 {[%clk 0:00:14.6]} 29... Rxd1+ {[%clk 0:02:00]} 30. Kg2
{[%clk 0:00:15.2]} 30... Rd2+ {[%clk 0:01:59.9]} 31. Kh1 {[%clk 0:00:15.6]}
31... Qf2 {[%clk 0:01:54.3]} 32. Qf5 {[%clk 0:00:15]} 32... Qh2# {[%clk
0:01:53.6]} 0-1

[Event "Late-Titled-Tuesday-Blitz-January-23-2024"]
[Site "Chess.com"]
[Date "2024.01.23"]
[Round "4"]
[White "ItalianMachine"]
[Black "j_coca"]
[Result "0-1"]
[WhiteElo "2363"]
[BlackElo "2536"]
[TimeControl "180+1"]
[EndTime "14:36:04 PST"]
[Termination "j_coca won by resignation"]

1. e4 {[%clk 0:03:00.9]} 1... g6 {[%clk 0:03:00.8]} 2. d4 {[%clk 0:02:56.6]}
2... Bg7 {[%clk 0:03:01.1]} 3. Nc3 {[%clk 0:02:57.3]} 3... d6 {[%clk 0:03:01.5]}
4. Be3 {[%clk 0:02:57.9]} 4... Nh6 {[%clk 0:03:01.6]} 5. f3 {[%clk 0:02:55.7]}
5... f6 {[%clk 0:03:00.9]} 6. h4 {[%clk 0:02:54.4]} 6... O-O {[%clk 0:02:58.9]}
7. h5 {[%clk 0:02:54.8]} 7... g5 {[%clk 0:02:59.1]} 8. Qd2 {[%clk 0:02:42.9]}
8... Nf7 {[%clk 0:02:59.5]} 9. O-O-O {[%clk 0:02:40.8]} 9... h6 {[%clk
0:02:59.9]} 10. g3 {[%clk 0:02:32.3]} 10... Nc6 {[%clk 0:03:00]} 11. f4 {[%clk
0:02:32.2]} 11... e5 {[%clk 0:02:58]} 12. d5 {[%clk 0:02:32.4]} 12... Ne7 {[%clk
0:02:57.8]} 13. Nf3 {[%clk 0:01:56.5]} 13... Bg4 {[%clk 0:02:46]} 14. Be2 {[%clk
0:01:56.6]} 14... Qc8 {[%clk 0:02:44.3]} 15. Rdf1 {[%clk 0:01:42.6]} 15... a6
{[%clk 0:02:43]} 16. Nd1 {[%clk 0:01:38]} 16... Qd7 {[%clk 0:02:42.2]} 17. Nf2
{[%clk 0:01:38.3]} 17... Bxf3 {[%clk 0:02:40]} 18. Bxf3 {[%clk 0:01:38.8]} 18...
c5 {[%clk 0:02:38.7]} 19. Bg4 {[%clk 0:01:34.3]} 19... Qc7 {[%clk 0:02:36.8]}
20. Be6 {[%clk 0:01:33.2]} 20... Kh8 {[%clk 0:02:37.3]} 21. fxg5 {[%clk
0:01:29.6]} 21... Nxg5 {[%clk 0:02:32.5]} 22. Bxg5 {[%clk 0:01:17.8]} 22... fxg5
{[%clk 0:02:32.3]} 23. Ng4 {[%clk 0:01:18.4]} 23... Ng8 {[%clk 0:02:31.4]} 24.
Ne3 {[%clk 0:01:12.1]} 24... Nf6 {[%clk 0:02:30.3]} 25. Qg2 {[%clk 0:00:46.6]}
25... b5 {[%clk 0:02:29.8]} 26. Nf5 {[%clk 0:00:47]} 26... Rad8 {[%clk
0:02:28.2]} 27. Rf2 {[%clk 0:00:46.7]} 27... c4 {[%clk 0:02:24.3]} 28. Rhf1
{[%clk 0:00:47.1]} 28... Qc5 {[%clk 0:02:24.3]} 29. Nxh6 {[%clk 0:00:41.5]}
29... Qe3+ {[%clk 0:02:11.6]} 30. Kb1 {[%clk 0:00:41.7]} 30... Bxh6 {[%clk
0:02:06.8]} 31. Rf3 {[%clk 0:00:40.3]} 31... Qxe4 {[%clk 0:02:06.3]} 32. a3
{[%clk 0:00:16.6]} 32... Kg7 {[%clk 0:01:57.9]} 33. Rxf6 {[%clk 0:00:13]} 33...
Qxg2 {[%clk 0:01:56]} 34. Rg6+ {[%clk 0:00:09.2]} 34... Kh7 {[%clk 0:01:54.3]}
0-1